[Event "*** Titled Tuesday Blitz"]
[Site "Chess.com"]
[Date "2021.02.16"]
[Round "3"]
[White "BrianEscalante"]
[Black "JQuiroga18"]
[Result "1-0"]
[WhiteElo "2624"]
[BlackElo "2412"]
[TimeControl "180+1"]
[EndTime "10:30:41 PST"]
[Termination "BrianEscalante won by resignation"]

1. e4 {[%clk 0:03:00.9]} 1... e5 {[%clk 0:02:58.6]} 2. Nf3 {[%clk 0:02:52.7]}
2... Nc6 {[%clk 0:02:58.6]} 3. d4 {[%clk 0:02:53.6]} 3... exd4 {[%clk
0:02:58.2]} 4. Nxd4 {[%clk 0:02:54.5]} 4... Nf6 {[%clk 0:02:57.6]} 5. Nxc6
{[%clk 0:02:54.7]} 5... bxc6 {[%clk 0:02:58.5]} 6. e5 {[%clk 0:02:54.4]} 6...
Qe7 {[%clk 0:02:58.3]} 7. Qe2 {[%clk 0:02:55]} 7... Nd5 {[%clk 0:02:58.3]} 8. h4
{[%clk 0:02:55.6]} 8... d6 {[%clk 0:02:41.7]} 9. c4 {[%clk 0:02:51.9]} 9... Ba6
{[%clk 0:02:40.8]} 10. exd6 {[%clk 0:02:35.2]} 10... cxd6 {[%clk 0:02:37.5]} 11.
Qxe7+ {[%clk 0:02:29.9]} 11... Nxe7 {[%clk 0:02:38.4]} 12. Nc3 {[%clk
0:02:29.5]} 12... Nf5 {[%clk 0:02:36.5]} 13. b3 {[%clk 0:02:22.9]} 13... g6
{[%clk 0:02:33.7]} 14. Bb2 {[%clk 0:02:22.1]} 14... Bg7 {[%clk 0:02:33.2]} 15.
O-O-O {[%clk 0:02:22]} 15... O-O-O {[%clk 0:02:32]} 16. h5 {[%clk 0:02:19.2]}
16... d5 {[%clk 0:01:57.5]} 17. cxd5 {[%clk 0:02:14.8]} 17... Bxf1 {[%clk
0:01:57.2]} 18. Rhxf1 {[%clk 0:02:14.9]} 18... cxd5 {[%clk 0:01:55.9]} 19. Nxd5
{[%clk 0:02:13.1]} 19... Bxb2+ {[%clk 0:01:55]} 20. Kxb2 {[%clk 0:02:14]} 20...
Rhe8 {[%clk 0:01:53.5]} 21. hxg6 {[%clk 0:02:01]} 21... Re2+ {[%clk 0:01:51.8]}
22. Kb1 {[%clk 0:01:59.8]} 22... hxg6 {[%clk 0:01:50.7]} 23. Rc1+ {[%clk
0:01:17.6]} 23... Kb8 {[%clk 0:01:47.1]} 24. Nc3 {[%clk 0:01:18.2]} 24... Red2
{[%clk 0:01:42.9]} 25. Ne4 {[%clk 0:01:18]} 25... Re2 {[%clk 0:01:38.7]} 26.
Rce1 {[%clk 0:01:17.8]} 26... Rxe1+ {[%clk 0:01:28.5]} 27. Rxe1 {[%clk
0:01:18.7]} 27... Re8 {[%clk 0:01:23.6]} 28. f3 {[%clk 0:01:16.8]} 28... Nh4
{[%clk 0:01:20.7]} 29. Rg1 {[%clk 0:01:09]} 29... f5 {[%clk 0:01:18.6]} 30. Nc3
{[%clk 0:01:06]} 30... Re3 {[%clk 0:01:08.6]} 31. Kc2 {[%clk 0:01:06.1]} 31...
f4 {[%clk 0:01:08.6]} 32. a4 {[%clk 0:00:45.3]} 32... g5 {[%clk 0:01:08]} 33. a5
{[%clk 0:00:34.1]} 33... Kb7 {[%clk 0:01:07]} 34. b4 {[%clk 0:00:32.8]} 34... a6
{[%clk 0:01:00.1]} 35. Nd5 {[%clk 0:00:30.8]} 35... Ra3 {[%clk 0:00:56.7]} 36.
Nc3 {[%clk 0:00:28.2]} 36... Nf5 {[%clk 0:00:12]} 37. Kb2 {[%clk 0:00:27.8]}
37... Rxc3 {[%clk 0:00:12.4]} 38. Kxc3 {[%clk 0:00:28.3]} 38... Ng3 {[%clk
0:00:13.3]} 39. Re1 {[%clk 0:00:26.8]} 1-0

[Event "*** Titled Tuesday Blitz"]
[Site "Chess.com"]
[Date "2021.02.16"]
[Round "3"]
[White "WiktoriaPOL"]
[Black "LuisFSiles"]
[Result "0-1"]
[WhiteElo "2018"]
[BlackElo "2314"]
[TimeControl "180+1"]
[EndTime "10:30:45 PST"]
[Termination "LuisFSiles won on time"]

1. e4 {[%clk 0:03:00.9]} 1... c5 {[%clk 0:02:58.3]} 2. d4 {[%clk 0:03:00.4]}
2... cxd4 {[%clk 0:02:57.9]} 3. c3 {[%clk 0:03:00.8]} 3... d3 {[%clk 0:02:57.1]}
4. Bxd3 {[%clk 0:02:59.7]} 4... Nc6 {[%clk 0:02:54.9]} 5. Nf3 {[%clk 0:02:59.4]}
5... g6 {[%clk 0:02:53.8]} 6. O-O {[%clk 0:02:58.4]} 6... Bg7 {[%clk 0:02:53.8]}
7. Bf4 {[%clk 0:02:53.8]} 7... d6 {[%clk 0:02:53.2]} 8. Nbd2 {[%clk 0:02:42.6]}
8... Bg4 {[%clk 0:02:52.3]} 9. h3 {[%clk 0:02:40.9]} 9... Bxf3 {[%clk 0:02:52]}
10. Nxf3 {[%clk 0:02:40.1]} 10... Nf6 {[%clk 0:02:51.1]} 11. Re1 {[%clk
0:02:30.9]} 11... Nd7 {[%clk 0:02:46.3]} 12. Bc4 {[%clk 0:02:17]} 12... O-O
{[%clk 0:02:41.4]} 13. Qd2 {[%clk 0:02:08.7]} 13... Nde5 {[%clk 0:02:28.3]} 14.
Be2 {[%clk 0:02:01.9]} 14... Nxf3+ {[%clk 0:02:20.5]} 15. Bxf3 {[%clk
0:02:01.3]} 15... Ne5 {[%clk 0:02:21.4]} 16. Be2 {[%clk 0:02:00]} 16... Rc8
{[%clk 0:02:09.7]} 17. Bh6 {[%clk 0:01:58.5]} 17... Qb6 {[%clk 0:01:57.3]} 18.
Bxg7 {[%clk 0:01:40.5]} 18... Kxg7 {[%clk 0:01:58.2]} 19. b3 {[%clk 0:01:36.8]}
19... Qa5 {[%clk 0:01:44.4]} 20. Rac1 {[%clk 0:01:25.6]} 20... f6 {[%clk
0:01:32.1]} 21. Red1 {[%clk 0:01:23]} 21... g5 {[%clk 0:01:29.8]} 22. c4 {[%clk
0:01:20]} 22... Qxd2 {[%clk 0:01:28.3]} 23. Rxd2 {[%clk 0:01:20.9]} 23... Rc5
{[%clk 0:01:21.5]} 24. Rd5 {[%clk 0:01:12.7]} 24... Rfc8 {[%clk 0:01:18]} 25.
Rcd1 {[%clk 0:01:11.7]} 25... R8c7 {[%clk 0:01:10.9]} 26. Kf1 {[%clk 0:00:52.3]}
26... Nc6 {[%clk 0:01:10.2]} 27. Rxc5 {[%clk 0:00:49.9]} 27... dxc5 {[%clk
0:01:11.1]} 28. Rd5 {[%clk 0:00:36.3]} 28... Nd4 {[%clk 0:01:08.7]} 29. Bg4
{[%clk 0:00:29.3]} 29... e6 {[%clk 0:00:58.5]} 30. Rd6 {[%clk 0:00:25.4]} 30...
f5 {[%clk 0:00:54.8]} 31. exf5 {[%clk 0:00:21.8]} 31... exf5 {[%clk 0:00:55.7]}
32. Be2 {[%clk 0:00:12.2]} 32... Re7 {[%clk 0:00:52.2]} 33. Bd3 {[%clk
0:00:11.6]} 33... b6 {[%clk 0:00:47.6]} 34. Rd5 {[%clk 0:00:09.5]} 34... Kf6
{[%clk 0:00:47.6]} 35. Rd6+ {[%clk 0:00:07.4]} 35... Ke5 {[%clk 0:00:47.3]} 36.
Rh6 {[%clk 0:00:04.7]} 36... Ne6 {[%clk 0:00:42.6]} 37. h4 {[%clk 0:00:03.3]}
37... Nf4 {[%clk 0:00:42]} 38. Bc2 {[%clk 0:00:01.4]} 38... g4 {[%clk
0:00:40.6]} 39. h5 {[%clk 0:00:01.4]} 39... Rd7 {[%clk 0:00:40.3]} 40. g3 {[%clk
0:00:01.6]} 40... Ne6 {[%clk 0:00:38.5]} 41. Ke1 {[%clk 0:00:01.8]} 41... Nd4
{[%clk 0:00:38.6]} 0-1

[Event "*** Titled Tuesday Blitz"]
[Site "Chess.com"]
[Date "2021.02.16"]
[Round "3"]
[White "Zubrrr"]
[Black "Grandelicious"]
[Result "0-1"]
[WhiteElo "2627"]
[BlackElo "2886"]
[TimeControl "180+1"]
[EndTime "10:30:46 PST"]
[Termination "Grandelicious won on time"]

1. d4 {[%clk 0:03:00.9]} 1... d5 {[%clk 0:02:59.9]} 2. c4 {[%clk 0:03:00.8]}
2... e6 {[%clk 0:03:00.3]} 3. Nf3 {[%clk 0:03:01.1]} 3... a6 {[%clk 0:03:00.7]}
4. cxd5 {[%clk 0:03:00.7]} 4... exd5 {[%clk 0:03:01.6]} 5. g3 {[%clk 0:03:00.2]}
5... Nf6 {[%clk 0:03:00.9]} 6. Bg2 {[%clk 0:03:00.4]} 6... Be7 {[%clk
0:03:01.5]} 7. O-O {[%clk 0:03:00.7]} 7... O-O {[%clk 0:03:02.1]} 8. Qc2 {[%clk
0:03:01]} 8... c6 {[%clk 0:02:54.2]} 9. Bf4 {[%clk 0:02:53.6]} 9... Nbd7 {[%clk
0:02:52]} 10. Nbd2 {[%clk 0:02:48.9]} 10... Ne8 {[%clk 0:02:47.5]} 11. Rad1
{[%clk 0:02:21.8]} 11... Nd6 {[%clk 0:02:46]} 12. Ne5 {[%clk 0:02:06.4]} 12...
Nf6 {[%clk 0:02:26.8]} 13. Nb3 {[%clk 0:01:50.2]} 13... Bf5 {[%clk 0:02:24.5]}
14. Qc1 {[%clk 0:01:50]} 14... a5 {[%clk 0:02:16.7]} 15. Rfe1 {[%clk 0:01:43.8]}
15... a4 {[%clk 0:02:09.4]} 16. Nc5 {[%clk 0:01:43.8]} 16... Re8 {[%clk
0:02:04.9]} 17. f3 {[%clk 0:01:33.9]} 17... Qb6 {[%clk 0:01:48.3]} 18. e4 {[%clk
0:01:25]} 18... dxe4 {[%clk 0:01:41.7]} 19. fxe4 {[%clk 0:01:25.9]} 19... Bc8
{[%clk 0:01:32.7]} 20. Ned3 {[%clk 0:01:07.4]} 20... Nb5 {[%clk 0:01:29.5]} 21.
Qc4 {[%clk 0:00:52.2]} 21... Rd8 {[%clk 0:01:19.7]} 22. Ne5 {[%clk 0:00:39.2]}
22... Rf8 {[%clk 0:01:19.6]} 23. Ned3 {[%clk 0:00:27.5]} 23... Bg4 {[%clk
0:01:17]} 24. Rd2 {[%clk 0:00:23.4]} 24... Rad8 {[%clk 0:01:17]} 25. Be3 {[%clk
0:00:22.9]} 25... a3 {[%clk 0:01:12.4]} 26. b4 {[%clk 0:00:21.2]} 26... Bc8
{[%clk 0:01:10.9]} 27. h3 {[%clk 0:00:20.9]} 27... Qc7 {[%clk 0:01:08.5]} 28.
Bf2 {[%clk 0:00:20.6]} 28... Bxc5 {[%clk 0:00:59.9]} 29. Nxc5 {[%clk 0:00:15.1]}
29... Rfe8 {[%clk 0:00:56.9]} 30. Kh2 {[%clk 0:00:08.2]} 30... h5 {[%clk
0:00:55.7]} 31. Kg1 {[%clk 0:00:06]} 31... Nd6 {[%clk 0:00:52]} 32. Qc2 {[%clk
0:00:04.9]} 32... Nb5 {[%clk 0:00:49.5]} 33. Nb3 {[%clk 0:00:04.9]} 33... Qe7
{[%clk 0:00:48.8]} 34. Nc5 {[%clk 0:00:02.4]} 34... b6 {[%clk 0:00:46.3]} 35.
Nb3 {[%clk 0:00:02.5]} 35... Qxb4 {[%clk 0:00:46.5]} 36. Qxc6 {[%clk 0:00:02.7]}
36... Nxd4 {[%clk 0:00:40.6]} 37. Rxd4 {[%clk 0:00:02]} 37... Rxd4 {[%clk
0:00:40.4]} 38. Nxd4 {[%clk 0:00:02.9]} 38... Rd8 {[%clk 0:00:31.2]} 0-1

[Event "*** Titled Tuesday Blitz"]
[Site "Chess.com"]
[Date "2021.02.16"]
[Round "3"]
[White "thechesscorner64"]
[Black "elohunter1999"]
[Result "0-1"]
[WhiteElo "2417"]
[BlackElo "2631"]
[TimeControl "180+1"]
[EndTime "10:30:47 PST"]
[Termination "elohunter1999 won by checkmate"]

1. e4 {[%clk 0:03:00.9]} 1... c5 {[%clk 0:02:56.6]} 2. Nf3 {[%clk 0:02:58.6]}
2... Nc6 {[%clk 0:02:56.6]} 3. Bb5 {[%clk 0:02:57.6]} 3... e6 {[%clk 0:02:56]}
4. O-O {[%clk 0:02:57.1]} 4... Nge7 {[%clk 0:02:56]} 5. c3 {[%clk 0:02:57]} 5...
a6 {[%clk 0:02:55.4]} 6. Ba4 {[%clk 0:02:57.2]} 6... b5 {[%clk 0:02:53.9]} 7.
Bc2 {[%clk 0:02:57.2]} 7... Bb7 {[%clk 0:02:51.3]} 8. a4 {[%clk 0:02:55.8]} 8...
Rc8 {[%clk 0:02:48.4]} 9. Re1 {[%clk 0:02:53]} 9... Ng6 {[%clk 0:02:43.6]} 10.
g3 {[%clk 0:02:52.6]} 10... Be7 {[%clk 0:02:31]} 11. h4 {[%clk 0:02:51.9]} 11...
O-O {[%clk 0:02:28.5]} 12. h5 {[%clk 0:02:50.9]} 12... Nge5 {[%clk 0:02:28.4]}
13. Nxe5 {[%clk 0:02:46.9]} 13... Nxe5 {[%clk 0:02:29.3]} 14. d4 {[%clk
0:02:46.5]} 14... cxd4 {[%clk 0:02:29.2]} 15. cxd4 {[%clk 0:02:47.4]} 15... Rxc2
{[%clk 0:02:15.6]} 16. dxe5 {[%clk 0:02:28.7]} 16... Qc7 {[%clk 0:02:14.2]} 17.
Nc3 {[%clk 0:02:23.4]} 17... Rxc3 {[%clk 0:02:11.7]} 18. bxc3 {[%clk 0:02:23.3]}
18... Qxe5 {[%clk 0:02:11.6]} 19. Qxd7 {[%clk 0:01:51.5]} 19... Bxe4 {[%clk
0:00:32.9]} 20. Qxe7 {[%clk 0:01:36.9]} 20... Qf5 {[%clk 0:00:19.9]} 21. Ba3
{[%clk 0:00:49.4]} 21... Rc8 {[%clk 0:00:16.1]} 22. Rad1 {[%clk 0:00:40.4]}
22... h6 {[%clk 0:00:16]} 23. Rd8+ {[%clk 0:00:33.2]} 23... Rxd8 {[%clk
0:00:16.1]} 24. Qxd8+ {[%clk 0:00:34.1]} 24... Kh7 {[%clk 0:00:16.6]} 25. Qd4
{[%clk 0:00:34.7]} 25... Bc6 {[%clk 0:00:10.7]} 26. Qe3 {[%clk 0:00:13.1]} 26...
Qh3 {[%clk 0:00:05.8]} 27. f3 {[%clk 0:00:07.9]} 27... Qxg3+ {[%clk 0:00:05.6]}
28. Kf1 {[%clk 0:00:08.5]} 28... Bxf3 {[%clk 0:00:05.7]} 29. Qd3+ {[%clk
0:00:05.8]} 29... f5 {[%clk 0:00:04.1]} 30. Qe3 {[%clk 0:00:02.4]} 30... Qg2#
{[%clk 0:00:04]} 0-1

[Event "*** Titled Tuesday Blitz"]
[Site "Chess.com"]
[Date "2021.02.16"]
[Round "3"]
[White "kleopl"]
[Black "Pantata007"]
[Result "1-0"]
[WhiteElo "2469"]
[BlackElo "2276"]
[TimeControl "180+1"]
[EndTime "10:30:48 PST"]
[Termination "kleopl won on time"]

1. c4 {[%clk 0:03:00.9]} 1... Nf6 {[%clk 0:02:59.1]} 2. Nc3 {[%clk 0:03:00.3]}
2... c5 {[%clk 0:02:59.3]} 3. Nf3 {[%clk 0:02:59.7]} 3... e6 {[%clk 0:02:59.3]}
4. g3 {[%clk 0:02:59]} 4... b6 {[%clk 0:02:59.2]} 5. Bg2 {[%clk 0:02:58.8]} 5...
Bb7 {[%clk 0:02:59.7]} 6. O-O {[%clk 0:02:59]} 6... Be7 {[%clk 0:03:00.1]} 7. b3
{[%clk 0:02:56.2]} 7... O-O {[%clk 0:02:59.6]} 8. Bb2 {[%clk 0:02:56.5]} 8... d5
{[%clk 0:02:50.7]} 9. cxd5 {[%clk 0:02:56]} 9... Nxd5 {[%clk 0:02:50.7]} 10.
Nxd5 {[%clk 0:02:52.8]} 10... Bxd5 {[%clk 0:02:49.6]} 11. Rc1 {[%clk 0:02:48.2]}
11... Bf6 {[%clk 0:02:25.7]} 12. Qc2 {[%clk 0:02:43.4]} 12... Nd7 {[%clk
0:02:18.8]} 13. Rfd1 {[%clk 0:02:40.9]} 13... Bxb2 {[%clk 0:02:18.5]} 14. Qxb2
{[%clk 0:02:41.8]} 14... Qf6 {[%clk 0:02:18.9]} 15. Qxf6 {[%clk 0:02:28.4]}
15... Nxf6 {[%clk 0:02:19.8]} 16. d3 {[%clk 0:02:28.9]} 16... Rfd8 {[%clk
0:02:19.8]} 17. Nd2 {[%clk 0:02:28.1]} 17... Bxg2 {[%clk 0:02:15.7]} 18. Kxg2
{[%clk 0:02:29]} 18... Nd5 {[%clk 0:02:09.6]} 19. a3 {[%clk 0:02:25.2]} 19... h6
{[%clk 0:02:05.2]} 20. Ne4 {[%clk 0:02:24]} 20... Rac8 {[%clk 0:02:04.4]} 21.
Rd2 {[%clk 0:02:22.6]} 21... f5 {[%clk 0:01:31.5]} 22. Nc3 {[%clk 0:02:21.9]}
22... Nxc3 {[%clk 0:01:22.9]} 23. Rxc3 {[%clk 0:02:22.8]} 23... Rd5 {[%clk
0:01:15.3]} 24. b4 {[%clk 0:02:10.2]} 24... Rb8 {[%clk 0:01:05.9]} 25. bxc5
{[%clk 0:02:09.3]} 25... Rxc5 {[%clk 0:01:06.8]} 26. Rxc5 {[%clk 0:02:07.4]}
26... bxc5 {[%clk 0:01:07.7]} 27. Rc2 {[%clk 0:02:02.7]} 27... Rb3 {[%clk
0:01:07.7]} 28. a4 {[%clk 0:01:53.9]} 28... Rb4 {[%clk 0:01:05.8]} 29. Rxc5
{[%clk 0:01:49.4]} 29... Rxa4 {[%clk 0:01:05.6]} 30. Rc7 {[%clk 0:01:49.6]}
30... Ra2 {[%clk 0:00:58.3]} 31. Kf3 {[%clk 0:01:48.7]} 31... Kf8 {[%clk
0:00:57.5]} 32. h4 {[%clk 0:01:47.8]} 32... a5 {[%clk 0:00:54.8]} 33. Ra7 {[%clk
0:01:39.5]} 33... a4 {[%clk 0:00:54.5]} 34. h5 {[%clk 0:01:37.1]} 34... a3
{[%clk 0:00:54.1]} 35. d4 {[%clk 0:01:36.9]} 35... Ra1 {[%clk 0:00:43.7]} 36. e3
{[%clk 0:01:37]} 36... Kg8 {[%clk 0:00:27.6]} 37. Kf4 {[%clk 0:01:32.6]} 37...
Rf1 {[%clk 0:00:14.6]} 38. f3 {[%clk 0:01:32]} 38... Rh1 {[%clk 0:00:13.2]} 39.
g4 {[%clk 0:01:21]} 39... fxg4 {[%clk 0:00:12.9]} 40. fxg4 {[%clk 0:01:21.9]}
40... Ra1 {[%clk 0:00:11.3]} 41. Ke5 {[%clk 0:01:20.2]} 41... a2 {[%clk
0:00:06.9]} 42. e4 {[%clk 0:01:17.7]} 42... Rg1 {[%clk 0:00:03.3]} 43. Rxa2
{[%clk 0:01:13.2]} 43... Rxg4 {[%clk 0:00:03.4]} 44. Ra8+ {[%clk 0:01:06.7]}
44... Kf7 {[%clk 0:00:02.5]} 45. Ra7+ {[%clk 0:01:06.7]} 45... Kf8 {[%clk
0:00:02.9]} 46. Rb7 {[%clk 0:01:04]} 46... Kg8 {[%clk 0:00:02.9]} 47. Re7 {[%clk
0:01:03.4]} 47... Rg5+ {[%clk 0:00:02.7]} 48. Kxe6 {[%clk 0:01:03.6]} 48... Rxh5
{[%clk 0:00:03.6]} 49. d5 {[%clk 0:01:02.9]} 49... g5 {[%clk 0:00:01.9]} 50. d6
{[%clk 0:01:02.7]} 50... Rh1 {[%clk 0:00:01.5]} 51. d7 {[%clk 0:01:02.2]} 1-0

[Event "*** Titled Tuesday Blitz"]
[Site "Chess.com"]
[Date "2021.02.16"]
[Round "3"]
[White "Michaelson_11"]
[Black "blank0923"]
[Result "0-1"]
[WhiteElo "2260"]
[BlackElo "2453"]
[TimeControl "180+1"]
[EndTime "10:30:49 PST"]
[Termination "blank0923 won by resignation"]

1. e4 {[%clk 0:03:00.9]} 1... c6 {[%clk 0:02:51.5]} 2. d4 {[%clk 0:02:59.9]}
2... d5 {[%clk 0:02:52.4]} 3. Nd2 {[%clk 0:03:00.4]} 3... dxe4 {[%clk
0:02:52.7]} 4. Nxe4 {[%clk 0:03:01.3]} 4... Nf6 {[%clk 0:02:53.4]} 5. Nxf6+
{[%clk 0:03:01.9]} 5... exf6 {[%clk 0:02:54.3]} 6. c3 {[%clk 0:03:02.8]} 6...
Bd6 {[%clk 0:02:54.9]} 7. Bd3 {[%clk 0:03:03.5]} 7... O-O {[%clk 0:02:55.6]} 8.
Qc2 {[%clk 0:03:04.1]} 8... Re8+ {[%clk 0:02:56.1]} 9. Ne2 {[%clk 0:03:04.8]}
9... h5 {[%clk 0:02:55.1]} 10. Be3 {[%clk 0:03:05.4]} 10... Nd7 {[%clk
0:02:55.2]} 11. Ng3 {[%clk 0:03:04.6]} 11... h4 {[%clk 0:02:40.5]} 12. Nf5
{[%clk 0:03:03.8]} 12... Bf4 {[%clk 0:02:40.5]} 13. O-O-O {[%clk 0:02:50.4]}
13... Bxe3+ {[%clk 0:02:28.6]} 14. fxe3 {[%clk 0:02:51.3]} 14... Nf8 {[%clk
0:02:22]} 15. Rde1 {[%clk 0:02:31.9]} 15... b5 {[%clk 0:02:06.4]} 16. Nxh4
{[%clk 0:02:25.3]} 16... Be6 {[%clk 0:02:05.1]} 17. Bf5 {[%clk 0:02:13.8]} 17...
a5 {[%clk 0:01:35.3]} 18. Bxe6 {[%clk 0:01:55]} 18... Nxe6 {[%clk 0:01:36.2]}
19. e4 {[%clk 0:01:45.7]} 19... b4 {[%clk 0:01:30.1]} 20. Nf5 {[%clk 0:01:31]}
20... g6 {[%clk 0:01:24.6]} 21. Nh6+ {[%clk 0:01:17.7]} 21... Kg7 {[%clk
0:01:24.6]} 22. Ng4 {[%clk 0:01:18.3]} 22... bxc3 {[%clk 0:01:16.8]} 23. bxc3
{[%clk 0:01:16.8]} 23... Rb8 {[%clk 0:00:56.9]} 24. Rhf1 {[%clk 0:01:14.4]}
24... Nxd4 {[%clk 0:00:56.3]} 25. cxd4 {[%clk 0:00:42.4]} 25... Qxd4 {[%clk
0:00:57.2]} 26. Rd1 {[%clk 0:00:42.4]} 26... Qb4 {[%clk 0:00:41.2]} 27. Nxf6
{[%clk 0:00:04.5]} 27... Qb5 {[%clk 0:00:36.9]} 28. Nxe8+ {[%clk 0:00:03.9]}
28... Rxe8 {[%clk 0:00:37.8]} 29. Qc3+ {[%clk 0:00:03.5]} 29... Kg8 {[%clk
0:00:35.9]} 30. Rf3 {[%clk 0:00:03.7]} 30... Rb8 {[%clk 0:00:25.5]} 31. Rdf1
{[%clk 0:00:03]} 31... Qb1+ {[%clk 0:00:13.5]} 32. Kd2 {[%clk 0:00:03.4]} 32...
Qxa2+ {[%clk 0:00:14.1]} 33. Ke1 {[%clk 0:00:02.7]} 33... Rb1+ {[%clk
0:00:13.7]} 0-1

[Event "*** Titled Tuesday Blitz"]
[Site "Chess.com"]
[Date "2021.02.16"]
[Round "3"]
[White "krzyzan94"]
[Black "zeitnot2006"]
[Result "1-0"]
[WhiteElo "2761"]
[BlackElo "2537"]
[TimeControl "180+1"]
[EndTime "10:30:50 PST"]
[Termination "krzyzan94 won on time"]

1. d4 {[%clk 0:03:00.9]} 1... Nf6 {[%clk 0:02:55.3]} 2. Nf3 {[%clk 0:02:58.1]}
2... c6 {[%clk 0:02:52.3]} 3. g3 {[%clk 0:02:48.3]} 3... g6 {[%clk 0:02:50.2]}
4. Bg2 {[%clk 0:02:48.1]} 4... d5 {[%clk 0:02:49.2]} 5. b3 {[%clk 0:02:43.8]}
5... Bg7 {[%clk 0:02:48.4]} 6. Bb2 {[%clk 0:02:44.4]} 6... O-O {[%clk 0:02:48]}
7. O-O {[%clk 0:02:44.7]} 7... Bf5 {[%clk 0:02:46.9]} 8. c4 {[%clk 0:02:43.9]}
8... a5 {[%clk 0:02:38.7]} 9. Nc3 {[%clk 0:02:40.6]} 9... Ne4 {[%clk 0:02:36.1]}
10. Rc1 {[%clk 0:02:32.7]} 10... Nxc3 {[%clk 0:02:29.3]} 11. Bxc3 {[%clk
0:02:33.6]} 11... Be4 {[%clk 0:02:29.3]} 12. Ne1 {[%clk 0:02:14.1]} 12... Bxg2
{[%clk 0:02:26.2]} 13. Nxg2 {[%clk 0:02:15]} 13... a4 {[%clk 0:02:22.9]} 14. Nf4
{[%clk 0:02:06]} 14... axb3 {[%clk 0:02:18.7]} 15. axb3 {[%clk 0:02:06.9]} 15...
Na6 {[%clk 0:02:15.4]} 16. Qd3 {[%clk 0:02:03.3]} 16... Nc7 {[%clk 0:02:08.6]}
17. Ra1 {[%clk 0:02:00]} 17... Qd7 {[%clk 0:02:07.5]} 18. e3 {[%clk 0:01:48.3]}
18... Ne6 {[%clk 0:01:59.1]} 19. Nxe6 {[%clk 0:01:42.7]} 19... Qxe6 {[%clk
0:02:00]} 20. Kg2 {[%clk 0:01:41.5]} 20... Qe4+ {[%clk 0:01:44.1]} 21. Qxe4
{[%clk 0:01:41]} 21... dxe4 {[%clk 0:01:45]} 22. Bb4 {[%clk 0:01:39.4]} 22...
Bf6 {[%clk 0:01:39]} 23. f3 {[%clk 0:01:29.8]} 23... exf3+ {[%clk 0:01:38.2]}
24. Kxf3 {[%clk 0:01:30.7]} 24... Rfd8 {[%clk 0:01:35.2]} 25. Ke4 {[%clk
0:01:27.7]} 25... Kg7 {[%clk 0:01:30.1]} 26. Bc5 {[%clk 0:01:26.9]} 26... h5
{[%clk 0:01:22.8]} 27. Bb6 {[%clk 0:01:25.4]} 27... Rh8 {[%clk 0:01:21.9]} 28.
h3 {[%clk 0:01:22]} 28... e6 {[%clk 0:01:14.1]} 29. Bc7 {[%clk 0:01:16.8]} 29...
Rhc8 {[%clk 0:00:49.8]} 30. Bd6 {[%clk 0:01:11.7]} 30... Rd8 {[%clk 0:00:45.7]}
31. Bc5 {[%clk 0:01:11.6]} 31... Rdc8 {[%clk 0:00:37.5]} 32. b4 {[%clk
0:01:10.3]} 32... Bd8 {[%clk 0:00:28.2]} 33. Bd6 {[%clk 0:01:03.8]} 33... f5+
{[%clk 0:00:23.2]} 34. Kd3 {[%clk 0:01:03.8]} 34... Kf7 {[%clk 0:00:20.6]} 35.
e4 {[%clk 0:00:56.8]} 35... Bf6 {[%clk 0:00:17.1]} 36. e5 {[%clk 0:00:49.5]}
36... Be7 {[%clk 0:00:14.4]} 37. c5 {[%clk 0:00:44.3]} 37... g5 {[%clk
0:00:13.2]} 38. Kc4 {[%clk 0:00:42.1]} 38... Bd8 {[%clk 0:00:11.8]} 39. b5
{[%clk 0:00:41.5]} 39... Kg6 {[%clk 0:00:08.2]} 40. Kb4 {[%clk 0:00:34.1]} 40...
Rxa1 {[%clk 0:00:01.2]} 41. Rxa1 {[%clk 0:00:33.5]} 41... b6 {[%clk 0:00:02.1]}
42. bxc6 {[%clk 0:00:30.1]} 42... Rxc6 {[%clk 0:00:01.2]} 43. Kb5 {[%clk
0:00:29.7]} 1-0